[Event "1st Chartres GM 2020"]
[Site "Chartres"]
[Date "2020.10.02"]
[Round "6.2"]
[White "Guliyev, Namig"]
[Black "Lamard, Guillaume"]
[Result "1/2-1/2"]
[ECO "B15"]
[WhiteElo "2529"]
[BlackElo "2486"]
[Annotator "ChessBase"]
[PlyCount "180"]
[EventDate "2020.09.30"]
[EventType "tourn"]
[EventCountry "FRA"]
[SourceTitle "playchess.com"]
[Source "ChessBase"]
[SourceQuality "1"]
[TimeControl "5400+30"]

1. e4 {[%emt 0:00:00]} c6 {[%emt 0:00:00]} 2. d4 {[%emt 0:00:00]} d5 {[%emt 0:00:00]} 3. Nc3 {[%emt 0:00:33]} dxe4 {[%emt 0:00:00]} 4. Nxe4 {[%emt 0:00:03]} Nf6 {[%emt 0:00:00]} 5. Nxf6+ {[%emt 0:00:13]} exf6 {[%emt 0:00:00]} 6. c3 {[%emt 0:00:10]} Bd6 {[%emt 0:00:00]} 7. Bd3 {[%emt 0:00:05]} O-O {[%emt 0:00:02]} 8. Ne2 {[%emt 0:00:18]} Re8 {[%emt 0:00:11]} 9. Qc2 {[%emt 0:01:34]} h5 {[%emt 0:00:04]} 10. O-O {[%emt 0:01:38]} h4 {[%emt 0:00:22]} 11. h3 {[%emt 0:00:09]} Nd7 {[%emt 0:00:49]} 12. Bf4 {[%emt 0:01:11]} Nf8 {[%emt 0:00:09]} 13. Qd2 {[%emt 0:00:57]} Ng6 {[%emt 0:00:08]} 14. Bxd6 {[%emt 0:00:58]} Qxd6 {[%emt 0:00:05]} 15. Rfe1 {[%emt 0:00:26]} Be6 {[%emt 0:03:33]} 16. c4 {[%emt 0:00:28]} Rad8 {[%emt 0:06:32]} 17. Rad1 {[%emt 0:03:43]} Qc7 {[%emt 0:13:38]} 18. b3 {[%emt 0:03:03]} a6 {[%emt 0:11:19]} 19. Bc2 {[%emt 0:02:07]} b5 {[%emt 0:04:43]} 20. Qc3 {[%emt 0:06:33]} Qc8 {[%emt 0:03:05]} 21. d5 {[%emt 0:07:10]} cxd5 {[%emt 0:13:09]} 22. Bxg6 {[%emt 0:00:13]} fxg6 {[%emt 0:01:49]} 23. c5 {[%emt 0:00:06]} Qc7 {[%emt 0:07:25]} 24. Nd4 {[%emt 0:00:22]} Bc8 {[%emt 0:00:09]} 25. Rxe8+ {[%emt 0:00:14]} Rxe8 {[%emt 0:00:04]} 26. a4 {[%emt 0:00:09]} bxa4 {[%emt 0:02:28]} 27. bxa4 {[%emt 0:00:06]} g5 {[%emt 0:00:27]} 28. c6 {[%emt 0:00:15]} g4 {[%emt 0:04:02]} 29. hxg4 {[%emt 0:02:39]} Bxg4 {[%emt 0:00:06]} 30. Re1 {[%emt 0:00:19]} Rxe1+ {[%emt 0:03:56]} 31. Qxe1 {[%emt 0:00:17]} Kf7 {[%emt 0:00:25]} 32. Qb4 {[%emt 0:04:52]} Qe5 {[%emt 0:05:26]} 33. Qc3 {[%emt 0:01:24]} Bc8 {[%emt 0:00:45]} 34. c7 {[%emt 0:00:21]} g5 {[%emt 0:02:41]} 35. Qc2 {[%emt 0:06:32]} Qe1+ {[%emt 0:04:46]} 36. Kh2 {[%emt 0:00:30]} Qe5+ {[%emt 0:00:09]} 37. Kg1 {[%emt 0:00:00]} Kg7 {[%emt 0:01:09]} 38. Nf3 {[%emt 0:01:48]} Qd6 {[%emt 0:01:32]} 39. Qc3 {[%emt 0:00:49]} Kh6 {[%emt 0:01:03]} 40. a5 {[%emt 0:01:22]} Kh5 {[%emt 0:00:47]} 41. Qc2 {[%emt 0:04:16]} Kh6 {[%emt 0:00:29]} 42. Qb2 {[%emt 0:01:09]} Qf4 {[%emt 0:02:46]} 43. Qb8 {[%emt 0:04:36]} Qc1+ {[%emt 0:01:57]} 44. Kh2 {[%emt 0:00:09]} Qf4+ {[%emt 0:00:02]} 45. Kh1 {[%emt 0:01:28]} Qg4 {[%emt 0:00:25]} 46. Qb6 {[%emt 0:00:41]} Kg7 {[%emt 0:00:37]} 47. Qe3 {[%emt 0:04:47]} Kf7 {[%emt 0:02:04]} 48. Nd4 {[%emt 0:04:45]} Qe4 {[%emt 0:01:14]} 49. Qd2 {[%emt 0:00:35]} h3 {[%emt 0:01:48]} 50. f3 {[%emt 0:00:08]} Qe5 {[%emt 0:00:46]} 51. gxh3 {[%emt 0:03:11]} Qxc7 {[%emt 0:00:33]} 52. h4 {[%emt 0:00:27]} Qg3 {[%emt 0:01:36]} 53. hxg5 {[%emt 0:00:09]} Qh4+ {[%emt 0:00:46]} 54. Kg1 {[%emt 0:00:38]} Qxg5+ {[%emt 0:00:48]} 55. Qxg5 {[%emt 0:00:15]} fxg5 {[%emt 0:00:03]} 56. Kf2 {[%emt 0:00:17]} Kf6 {[%emt 0:01:27]} 57. Ke3 {[%emt 0:00:45]} Ke5 {[%emt 0:00:56]} 58. Nb3 {[%emt 0:01:05]} Bd7 {[%emt 0:00:16]} 59. Nd4 {[%emt 0:00:22]} Kd6 {[%emt 0:01:39]} 60. Kd3 {[%emt 0:01:46]} Kc5 {[%emt 0:00:14]} 61. Kc3 {[%emt 0:00:39]} Bh3 {[%emt 0:01:16]} 62. Ne2 {[%emt 0:05:12]} Bf1 {[%emt 0:01:00]} 63. Nd4 {[%emt 0:00:10]} Bh3 {[%emt 0:00:02]} 64. Ne2 {[%emt 0:00:05]} Be6 {[%emt 0:01:36]} 65. Nd4 {[%emt 0:02:34]} Bc8 {[%emt 0:00:12]} 66. Kd3 {[%emt 0:01:53]} Bh3 {[%emt 0:00:35]} 67. Kc3 {[%emt 0:00:27]} Kd6 {[%emt 0:00:04]} 68. Kd3 {[%emt 0:01:27]} Ke5 {[%emt 0:00:37]} 69. Ke3 {[%emt 0:00:29]} Bf1 {[%emt 0:00:27]} 70. Nc6+ {[%emt 0:02:08]} Kd6 {[%emt 0:00:04]} 71. Nd8 {[%emt 0:00:27]} Ke7 {[%emt 0:01:07]} 72. Nc6+ {[%emt 0:00:06]} Ke6 {[%emt 0:00:14]} 73. Nd8+ {[%emt 0:00:31]} Kf5 {[%emt 0:00:35]} 74. Nc6 {[%emt 0:00:24]} Bc4 {[%emt 0:00:30]} 75. Nd4+ {[%emt 0:01:24]} Ke5 {[%emt 0:00:07]} 76. Nc6+ {[%emt 0:01:30]} Kd6 {[%emt 0:00:04]} 77. Nd8 {[%emt 0:00:12]} Kd7 {[%emt 0:01:48]} 78. Nb7 {[%emt 0:00:11]} Kc7 {[%emt 0:00:24]} 79. Nc5 {[%emt 0:00:18]} Kd6 {[%emt 0:00:22]} 80. Kd4 {[%emt 0:01:12]} Be2 {[%emt 0:00:29]} 81. Nb7+ {[%emt 0:00:18]} Kc7 {[%emt 0:00:07]} 82. Nc5 {[%emt 0:00:14]} Kd6 {[%emt 0:00:02]} 83. Nb7+ {[%emt 0:00:29]} Kc6 {[%emt 0:01:16]} 84. Nd8+ {[%emt 0:01:06]} Kb5 {[%emt 0:00:25]} 85. Ne6 {[%emt 0:00:16]} Bxf3 {[%emt 0:00:08]} 86. Nxg5 {[%emt 0:00:26]} Bg2 {[%emt 0:00:32]} 87. Ne6 {[%emt 0:00:20]} Kxa5 {[%emt 0:00:09]} 88. Nf4 {[%emt 0:00:15]} Be4 {[%emt 0:01:32]} 89. Nxd5 {[%emt 0:00:11]} Bxd5 {[%emt 0:00:07]} 90. Kc3 {[%emt 0:00:04]} Ka4 {[%emt 0:00:04]} 1/2-1/2

[Event "1st Chartres GM 2020"]
[Site "Chartres"]
[Date "2020.10.02"]
[Round "6.3"]
[White "David, Alberto"]
[Black "Stephan, Victor"]
[Result "1-0"]
[ECO "D40"]
[WhiteElo "2507"]
[BlackElo "2439"]
[Annotator "ChessBase"]
[PlyCount "119"]
[EventDate "2020.09.30"]
[EventType "tourn"]
[EventCountry "FRA"]
[SourceTitle "playchess.com"]
[Source "ChessBase"]
[SourceQuality "1"]
[TimeControl "5400+30"]

1. d4 {[%emt 0:00:42]} Nf6 {[%emt 0:00:11]} 2. c4 {[%emt 0:01:10]} e6 {[%emt 0:00:18]} 3. Nc3 {[%emt 0:00:41]} c5 {[%emt 0:00:30]} 4. e3 {[%emt 0:05:07]} d5 {[%emt 0:01:01]} 5. Nf3 {[%emt 0:00:58]} a6 {[%emt 0:00:30]} 6. cxd5 {[%emt 0:05:13]} exd5 {[%emt 0:00:50]} 7. g3 {[%emt 0:01:25]} Nc6 {[%emt 0:07:09]} 8. Bg2 {[%emt 0:03:59]} Bd6 {[%emt 0:03:44]} 9. dxc5 {[%emt 0:06:35]} Bxc5 {[%emt 0:00:13]} 10. O-O {[%emt 0:00:15]} O-O {[%emt 0:03:38]} 11. h3 {[%emt 0:19:57]} h6 {[%emt 0:11:31]} 12. b3 {[%emt 0:02:11]} d4 {[%emt 0:16:21]} 13. exd4 {[%emt 0:01:23]} Nxd4 {[%emt 0:00:24]} 14. Be3 {[%emt 0:02:05]} Nxf3+ {[%emt 0:03:09]} 15. Qxf3 {[%emt 0:00:07]} Bxe3 {[%emt 0:00:18]} 16. Qxe3 {[%emt 0:00:08]} Re8 {[%emt 0:02:35]} 17. Rfd1 {[%emt 0:04:22]} Bd7 {[%emt 0:07:58]} 18. Qd4 {[%emt 0:03:25]} Bc6 {[%emt 0:07:13]} 19. Qxd8 {[%emt 0:02:29]} Raxd8 {[%emt 0:00:09]} 20. Bxc6 {[%emt 0:00:31]} bxc6 {[%emt 0:00:05]} 21. Kf1 {[%emt 0:07:17]} Kf8 {[%emt 0:01:42]} 22. Rac1 {[%emt 0:01:14]} Ke7 {[%emt 0:03:05]} 23. Ne2 {[%emt 0:10:16]} c5 {[%emt 0:03:34]} 24. Rxd8 {[%emt 0:02:00]} Rxd8 {[%emt 0:00:07]} 25. Rxc5 {[%emt 0:00:25]} Rd1+ {[%emt 0:03:21]} 26. Kg2 {[%emt 0:00:05]} Rd2 {[%emt 0:00:04]} 27. Nc3 {[%emt 0:00:09]} g5 {[%emt 0:00:54]} 28. Rc7+ {[%emt 0:02:36]} Ke6 {[%emt 0:03:20]} 29. Rc6+ {[%emt 0:01:42]} Rd6 {[%emt 0:00:10]} 30. Rc5 {[%emt 0:01:03]} Rd3 {[%emt 0:01:41]} 31. Kf1 {[%emt 0:04:36]} Kd6 {[%emt 0:03:09]} 32. Rc4 {[%emt 0:02:19]} Ke5 {[%emt 0:01:26]} 33. Ke2 {[%emt 0:00:49]} Rd6 {[%emt 0:00:07]} 34. Rc7 {[%emt 0:02:39]} Nd7 {[%emt 0:00:53]} 35. Nd1 {[%emt 0:00:55]} f5 {[%emt 0:05:03]} 36. Ne3 {[%emt 0:00:04]} Kf6 {[%emt 0:00:10]} 37. f4 {[%emt 0:02:31]} gxf4 {[%emt 0:01:47]} 38. gxf4 {[%emt 0:00:02]} Nf8 {[%emt 0:00:13]} 39. Rc5 {[%emt 0:02:55]} Ne6 {[%emt 0:00:05]} 40. Rxf5+ {[%emt 0:01:49]} Kg6 {[%emt 0:00:05]} 41. Kf2 {[%emt 0:00:28]} Rd2+ {[%emt 0:02:14]} 42. Kg3 {[%emt 0:00:14]} Rxa2 {[%emt 0:00:07]} 43. Rd5 {[%emt 0:00:45]} Kf7 {[%emt 0:01:47]} 44. Ng4 {[%emt 0:01:30]} Rg2+ {[%emt 0:01:13]} 45. Kh4 {[%emt 0:00:22]} Ke7 {[%emt 0:02:27]} 46. Re5 {[%emt 0:00:35]} Kd6 {[%emt 0:00:28]} 47. Re4 {[%emt 0:00:14]} Rb2 {[%emt 0:02:41]} 48. b4 {[%emt 0:00:40]} Kd5 {[%emt 0:02:10]} 49. Nf6+ {[%emt 0:00:31]} Kd6 {[%emt 0:00:02]} 50. Ng4 {[%emt 0:00:32]} Kd5 {[%emt 0:00:03]} 51. Re5+ {[%emt 0:00:11]} Kd6 {[%emt 0:00:01]} 52. f5 {[%emt 0:00:45]} Nd4 {[%emt 0:02:18]} 53. Ra5 {[%emt 0:00:15]} Rxb4 {[%emt 0:00:23]} 54. Rxa6+ {[%emt 0:00:31]} Ke7 {[%emt 0:00:44]} 55. f6+ {[%emt 0:00:17]} Kf8 {[%emt 0:00:43]} 56. Ra8+ {[%emt 0:01:05]} Kf7 {[%emt 0:00:03]} 57. Ra7+ {[%emt 0:00:03]} Kf8 {[%emt 0:01:07]} 58. Kh5 {[%emt 0:00:35]} Nf5 {[%emt 0:01:08]} 59. Ne5 {[%emt 0:00:41]} Ng3+ {[%emt 0:00:37]} 60. Kg6 {[%emt 0:00:22]} 1-0

[Event "1st Chartres GM 2020"]
[Site "Chartres"]
[Date "2020.10.02"]
[Round "6.5"]
[White "Vlachos, Anatole"]
[Black "Loiseau, Quentin"]
[Result "1/2-1/2"]
[ECO "A07"]
[WhiteElo "2437"]
[BlackElo "2457"]
[Annotator "ChessBase"]
[PlyCount "32"]
[EventDate "2020.09.30"]
[EventType "tourn"]
[EventCountry "FRA"]
[SourceTitle "playchess.com"]
[Source "ChessBase"]
[SourceQuality "1"]
[TimeControl "5400+30"]

1. Nf3 {[%emt 0:00:00]} d5 {[%emt 0:00:06]} 2. g3 {[%emt 0:00:00]} g6 {[%emt 0:00:04]} 3. Bg2 {[%emt 0:00:00]} Bg7 {[%emt 0:00:06]} 4. O-O {[%emt 0:00:00]} e5 {[%emt 0:00:05]} 5. d3 {[%emt 0:00:00]} Ne7 {[%emt 0:00:15]} 6. e4 {[%emt 0:00:00]} O-O {[%emt 0:03:56]} 7. Re1 {[%emt 0:00:00]} Nbc6 {[%emt 0:01:20]} 8. c3 {[%emt 0:00:00]} h6 {[%emt 0:00:32]} 9. b4 {[%emt 0:00:20]} dxe4 {[%emt 0:02:07]} 10. dxe4 {[%emt 0:00:07]} Qxd1 {[%emt 0:00:55]} 11. Rxd1 {[%emt 0:00:01]} Be6 {[%emt 0:00:13]} 12. a4 {[%emt 0:05:53]} Rfd8 {[%emt 0:03:59]} 13. Rxd8+ {[%emt 0:00:57]} Rxd8 {[%emt 0:00:10]} 14. Nbd2 {[%emt 0:00:39]} Nc8 {[%emt 0:04:51]} 15. Ne1 {[%emt 0:05:06]} Nd6 {[%emt 0:03:01]} 16. Nc2 {[%emt 0:00:32]} f5 {[%emt 0:08:23]} 1/2-1/2

[Event "1st Chartres GM 2020"]
[Site "Chartres"]
[Date "2020.10.03"]
[Round "7.1"]
[White "Maurizzi, Marc Andria"]
[Black "David, Alberto"]
[Result "1/2-1/2"]
[ECO "A47"]
[WhiteElo "2433"]
[BlackElo "2520"]
[Annotator "ChessBase"]
[PlyCount "47"]
[EventDate "2020.09.30"]
[EventType "tourn"]
[EventCountry "FRA"]
[SourceTitle "playchess.com"]
[Source "ChessBase"]
[SourceQuality "1"]
[TimeControl "5400+30"]

1. d4 {[%emt 0:00:00]} Nf6 {[%emt 0:00:38]} 2. Nf3 {[%emt 0:00:00]} e6 {[%emt 0:02:09]} 3. Bf4 {[%emt 0:01:06]} b6 {[%emt 0:00:27]} 4. Nbd2 {[%emt 0:00:50]} Bb7 {[%emt 0:00:38]} 5. e3 {[%emt 0:00:15]} Be7 {[%emt 0:00:24]} 6. Bd3 {[%emt 0:01:24]} c5 {[%emt 0:05:16]} 7. c3 {[%emt 0:04:55]} cxd4 {[%emt 0:02:42]} 8. exd4 {[%emt 0:00:12]} d6 {[%emt 0:05:46]} 9. O-O {[%emt 0:02:55]} O-O {[%emt 0:03:41]} 10. Re1 {[%emt 0:06:24]} Nd5 {[%emt 0:07:09]} 11. Bg3 {[%emt 0:01:15]} Nd7 {[%emt 0:01:36]} 12. Qc2 {[%emt 0:12:08]} h6 {[%emt 0:06:14]} 13. Rad1 {[%emt 0:03:00]} N5f6 {[%emt 0:02:57]} 14. Nc4 {[%emt 0:12:00]} Nh5 {[%emt 0:06:46]} 15. Bxd6 {[%emt 0:10:21]} Bxd6 {[%emt 0:03:06]} 16. Nxd6 {[%emt 0:00:14]} Bxf3 {[%emt 0:00:09]} 17. gxf3 {[%emt 0:00:02]} Qg5+ {[%emt 0:00:09]} 18. Kh1 {[%emt 0:00:28]} Qf4 {[%emt 0:00:08]} 19. Ne4 {[%emt 0:00:34]} Qxf3+ {[%emt 0:01:37]} 20. Kg1 {[%emt 0:00:01]} Nf4 {[%emt 0:05:02]} 21. Bf1 {[%emt 0:00:05]} Qg4+ {[%emt 0:00:05]} 22. Kh1 {[%emt 0:05:43]} Qf3+ {[%emt 0:05:31]} 23. Kg1 {[%emt 0:00:01]} Qg4+ {[%emt 0:00:07]} 24. Kh1 {[%emt 0:00:15]} 1/2-1/2

[Event "1st Chartres GM 2020"]
[Site "Chartres"]
[Date "2020.10.03"]
[Round "7.2"]
[White "Loiseau, Quentin"]
[Black "Dardha, Daniel"]
[Result "1/2-1/2"]
[ECO "B35"]
[WhiteElo "2457"]
[BlackElo "2468"]
[Annotator "ChessBase"]
[PlyCount "55"]
[EventDate "2020.09.30"]
[EventType "tourn"]
[EventCountry "FRA"]
[SourceTitle "playchess.com"]
[Source "ChessBase"]
[SourceQuality "1"]
[TimeControl "5400+30"]

1. e4 {[%emt 0:00:00]} c5 {[%emt 0:00:00]} 2. Nf3 {[%emt 0:00:00]} Nc6 {[%emt 0:00:00]} 3. Nc3 {[%emt 0:00:00]} Nf6 {[%emt 0:00:51]} 4. d4 {[%emt 0:00:01]} cxd4 {[%emt 0:00:04]} 5. Nxd4 {[%emt 0:00:04]} g6 {[%emt 0:00:25]} 6. Be3 {[%emt 0:00:07]} Bg7 {[%emt 0:00:09]} 7. Bc4 {[%emt 0:00:13]} Qa5 {[%emt 0:00:28]} 8. O-O {[%emt 0:00:53]} O-O {[%emt 0:00:06]} 9. Nb3 {[%emt 0:01:39]} Qc7 {[%emt 0:00:07]} 10. Be2 {[%emt 0:00:55]} b6 {[%emt 0:03:03]} 11. f4 {[%emt 0:10:07]} Bb7 {[%emt 0:00:56]} 12. e5 {[%emt 0:08:31]} Ne8 {[%emt 0:00:06]} 13. Nb5 {[%emt 0:00:37]} Qd8 {[%emt 0:00:37]} 14. Bg4 {[%emt 0:00:16]} d6 {[%emt 0:05:22]} 15. exd6 {[%emt 0:01:49]} a6 {[%emt 0:04:20]} 16. d7 {[%emt 0:07:24]} axb5 {[%emt 0:06:28]} 17. dxe8=R {[%emt 0:00:14]} Qxe8 {[%emt 0:00:27]} 18. c3 {[%emt 0:16:08]} b4 {[%emt 0:09:45]} 19. Bxb6 {[%emt 0:01:36]} bxc3 {[%emt 0:00:25]} 20. bxc3 {[%emt 0:00:27]} Ba6 {[%emt 0:06:19]} 21. Rf2 {[%emt 0:07:45]} Qb8 {[%emt 0:00:57]} 22. Be3 {[%emt 0:01:03]} Rd8 {[%emt 0:02:07]} 23. Qe1 {[%emt 0:01:09]} Qc7 {[%emt 0:05:15]} 24. Bf3 {[%emt 0:03:34]} Bc4 {[%emt 0:07:06]} 25. Rc1 {[%emt 0:01:25]} e5 {[%emt 0:06:44]} 26. Bxc6 {[%emt 0:09:30]} Qxc6 {[%emt 0:00:09]} 27. fxe5 {[%emt 0:00:05]} Bxe5 {[%emt 0:00:50]} 28. Bd4 {[%emt 0:00:32]} 1/2-1/2

[Event "1st Chartres GM 2020"]
[Site "Chartres"]
[Date "2020.10.03"]
[Round "7.4"]
[White "Stephan, Victor"]
[Black "Duboue, Peio"]
[Result "1-0"]
[ECO "D27"]
[WhiteElo "2439"]
[BlackElo "2439"]
[Annotator "ChessBase"]
[PlyCount "191"]
[EventDate "2020.09.30"]
[EventType "tourn"]
[EventCountry "FRA"]
[SourceTitle "playchess.com"]
[Source "ChessBase"]
[SourceQuality "1"]
[TimeControl "5400+30"]

1. d4 {[%emt 0:00:00]} d5 {[%emt 0:00:00]} 2. c4 {[%emt 0:00:30]} dxc4 {[%emt 0:00:00]} 3. Nf3 {[%emt 0:01:04]} Nf6 {[%emt 0:00:00]} 4. e3 {[%emt 0:00:14]} e6 {[%emt 0:00:00]} 5. Bxc4 {[%emt 0:00:09]} a6 {[%emt 0:00:00]} 6. O-O {[%emt 0:00:13]} c5 {[%emt 0:00:00]} 7. dxc5 {[%emt 0:02:19]} Qxd1 {[%emt 0:00:00]} 8. Rxd1 {[%emt 0:00:06]} Bxc5 {[%emt 0:00:00]} 9. Nfd2 {[%emt 0:01:01]} O-O {[%emt 0:01:42]} 10. Nb3 {[%emt 0:00:50]} Be7 {[%emt 0:03:03]} 11. Be2 {[%emt 0:01:31]} Nc6 {[%emt 0:02:57]} 12. Nc3 {[%emt 0:04:29]} b5 {[%emt 0:09:25]} 13. f3 {[%emt 0:06:51]} Rd8 {[%emt 0:03:06]} 14. e4 {[%emt 0:07:48]} Rxd1+ {[%emt 0:01:00]} 15. Bxd1 {[%emt 0:00:55]} e5 {[%emt 0:09:32]} 16. Be3 {[%emt 0:06:55]} Be6 {[%emt 0:00:15]} 17. Be2 {[%emt 0:01:36]} Nb4 {[%emt 0:02:56]} 18. Bc5 {[%emt 0:04:03]} Kf8 {[%emt 0:06:33]} 19. Bxe7+ {[%emt 0:02:53]} Kxe7 {[%emt 0:00:09]} 20. Nc5 {[%emt 0:01:26]} Rc8 {[%emt 0:18:50]} 21. Nxe6 {[%emt 0:03:23]} fxe6 {[%emt 0:00:37]} 22. Kf2 {[%emt 0:05:54]} Ne8 {[%emt 0:10:18]} 23. a4 {[%emt 0:04:58]} Nc2 {[%emt 0:00:11]} 24. Rc1 {[%emt 0:00:51]} Nd4 {[%emt 0:00:25]} 25. axb5 {[%emt 0:01:38]} axb5 {[%emt 0:00:24]} 26. Nd5+ {[%emt 0:10:01]} Kd8 {[%emt 0:00:04]} 27. Rxc8+ {[%emt 0:00:09]} Kxc8 {[%emt 0:00:03]} 28. Nb4 {[%emt 0:00:38]} Kc7 {[%emt 0:03:12]} 29. g3 {[%emt 0:02:31]} Kb6 {[%emt 0:00:50]} 30. Nd3 {[%emt 0:01:40]} Nc6 {[%emt 0:00:06]} 31. Bf1 {[%emt 0:01:43]} Nc7 {[%emt 0:02:50]} 32. Bh3 {[%emt 0:02:46]} Ka5 {[%emt 0:01:39]} 33. Nc5 {[%emt 0:00:53]} Nd8 {[%emt 0:02:04]} 34. Nd3 {[%emt 0:03:13]} Nc6 {[%emt 0:00:45]} 35. Ke3 {[%emt 0:00:20]} b4 {[%emt 0:01:50]} 36. Nc5 {[%emt 0:02:13]} Nd8 {[%emt 0:00:28]} 37. Bf1 {[%emt 0:01:11]} h6 {[%emt 0:12:13]} 38. Bc4 {[%emt 0:00:30]} g5 {[%emt 0:01:30]} 39. h4 {[%emt 0:03:12]} Ne8 {[%emt 0:03:00]} 40. Nd3 {[%emt 0:03:22]} Nd6 {[%emt 0:02:49]} 41. Bb3 {[%emt 0:01:21]} N6f7 {[%emt 0:02:18]} 42. Nc5 {[%emt 0:01:14]} Kb5 {[%emt 0:00:58]} 43. Nxe6 {[%emt 0:00:39]} Nxe6 {[%emt 0:00:10]} 44. Bxe6 {[%emt 0:00:04]} Nd6 {[%emt 0:00:03]} 45. Bd5 {[%emt 0:01:39]} Kc5 {[%emt 0:00:39]} 46. Ba2 {[%emt 0:02:36]} Ne8 {[%emt 0:01:35]} 47. h5 {[%emt 0:00:51]} Nf6 {[%emt 0:00:53]} 48. Bf7 {[%emt 0:00:05]} Kd6 {[%emt 0:00:32]} 49. f4 {[%emt 0:00:43]} gxf4+ {[%emt 0:00:10]} 50. gxf4 {[%emt 0:00:03]} Ng4+ {[%emt 0:00:10]} 51. Kf3 {[%emt 0:00:25]} Nf6 {[%emt 0:02:26]} 52. Bg6 {[%emt 0:01:03]} Nd7 {[%emt 0:00:16]} 53. Kg4 {[%emt 0:01:31]} Ke7 {[%emt 0:00:55]} 54. Kf5 {[%emt 0:02:06]} exf4 {[%emt 0:00:23]} 55. Kxf4 {[%emt 0:00:05]} Kf6 {[%emt 0:00:32]} 56. Be8 {[%emt 0:01:37]} Ne5 {[%emt 0:00:12]} 57. Bb5 {[%emt 0:00:14]} Nf7 {[%emt 0:00:11]} 58. Bc4 {[%emt 0:00:24]} Ne5 {[%emt 0:00:08]} 59. Be2 {[%emt 0:00:13]} Nf7 {[%emt 0:01:00]} 60. Bc4 {[%emt 0:01:11]} Ne5 {[%emt 0:00:04]} 61. Bb5 {[%emt 0:00:04]} Nf7 {[%emt 0:00:06]} 62. Be2 {[%emt 0:00:04]} Ne5 {[%emt 0:00:53]} 63. Ke3 {[%emt 0:00:04]} Ke6 {[%emt 0:00:12]} 64. Kd4 {[%emt 0:00:30]} Kd6 {[%emt 0:00:03]} 65. Bb5 {[%emt 0:02:51]} Nf3+ {[%emt 0:00:14]} 66. Ke3 {[%emt 0:01:04]} Ng5 {[%emt 0:01:50]} 67. Kd3 {[%emt 0:01:44]} Nf3 {[%emt 0:01:16]} 68. Be8 {[%emt 0:00:35]} Ne5+ {[%emt 0:00:25]} 69. Kd4 {[%emt 0:00:05]} Nf3+ {[%emt 0:00:11]} 70. Kc4 {[%emt 0:01:11]} Nd2+ {[%emt 0:00:05]} 71. Kd3 {[%emt 0:00:10]} Nf3 {[%emt 0:00:09]} 72. Ba4 {[%emt 0:00:32]} Ne5+ {[%emt 0:00:43]} 73. Kd4 {[%emt 0:00:25]} Nf3+ {[%emt 0:00:04]} 74. Kc4 {[%emt 0:00:03]} Nd2+ {[%emt 0:00:04]} 75. Kd3 {[%emt 0:00:12]} Nf3 {[%emt 0:00:03]} 76. Bc2 {[%emt 0:00:12]} Kc5 {[%emt 0:02:44]} 77. Ke3 {[%emt 0:00:23]} Nd4 {[%emt 0:00:27]} 78. Bd1 {[%emt 0:01:06]} Nc6 {[%emt 0:00:37]} 79. Kf4 {[%emt 0:01:26]} Kd4 {[%emt 0:00:15]} 80. Bc2 {[%emt 0:00:21]} Ne5 {[%emt 0:00:24]} 81. Kf5 {[%emt 0:00:04]} Nc4 {[%emt 0:00:08]} 82. Kg6 {[%emt 0:00:45]} Ne3 {[%emt 0:01:06]} 83. Kxh6 {[%emt 0:00:47]} Nxc2 {[%emt 0:00:06]} 84. Kg7 {[%emt 0:00:01]} Ne1 {[%emt 0:01:02]} 85. h6 {[%emt 0:00:06]} Nd3 {[%emt 0:00:02]} 86. h7 {[%emt 0:00:22]} Nxb2 {[%emt 0:00:04]} 87. h8=Q {[%emt 0:00:06]} Nd3 {[%emt 0:00:02]} 88. Kf7+ {[%emt 0:01:28]} Kxe4 {[%emt 0:00:13]} 89. Ke6 {[%emt 0:01:06]} b3 {[%emt 0:00:09]} 90. Qc3 {[%emt 0:01:02]} b2 {[%emt 0:00:11]} 91. Qc2 {[%emt 0:00:10]} Ke3 {[%emt 0:00:25]} 92. Kd7 {[%emt 0:00:40]} Nc5+ {[%emt 0:02:27]} 93. Qxc5+ {[%emt 0:00:18]} Kd2 {[%emt 0:00:04]} 94. Qd4+ {[%emt 0:00:08]} Kc2 {[%emt 0:00:02]} 95. Qc4+ {[%emt 0:00:04]} Kd2 {[%emt 0:00:03]} 96. Qb3 {[%emt 0:00:06]} 1-0

[Event "1st Chartres GM 2020"]
[Site "Chartres"]
[Date "2020.10.03"]
[Round "7.5"]
[White "Lamard, Guillaume"]
[Black "Vlachos, Anatole"]
[Result "1-0"]
[ECO "B30"]
[WhiteElo "2486"]
[BlackElo "2437"]
[Annotator "ChessBase"]
[PlyCount "123"]
[EventDate "2020.09.30"]
[EventType "tourn"]
[EventCountry "FRA"]
[SourceTitle "playchess.com"]
[Source "ChessBase"]
[SourceQuality "1"]
[TimeControl "5400+30"]

1. e4 {[%emt 1:30:30]} c5 {[%emt 1:30:30]} 2. Nf3 {[%emt 0:00:30]} Nc6 {[%emt 0:00:30]} 3. Bb5 {[%emt 0:00:30]} Nf6 {[%emt 0:00:30]} 4. Nc3 {[%emt 0:00:30]} Qc7 {[%emt 0:00:30]} 5. O-O {[%emt 0:00:30]} a6 {[%emt 0:00:30]} 6. Bxc6 {[%emt 0:00:30]} dxc6 {[%emt 0:00:30]} 7. d3 {[%emt 0:00:30]} e5 {[%emt 0:00:30]} 8. a4 {[%emt 0:00:30]} Bg4 {[%emt 0:00:30]} 9. h3 {[%emt 0:00:30]} Bh5 {[%emt 0:00:30]} 10. Qe2 {[%emt 0:00:30]} O-O-O {[%emt 0:00:30]} 11. Bg5 {[%emt 0:00:30]} Be7 {[%emt 0:00:30]} 12. Qe3 {[%emt 0:00:30]} Qd6 {[%emt 0:00:30]} 13. a5 {[%emt 0:00:30]} h6 {[%emt 0:00:30]} 14. Bxf6 {[%emt 0:00:30]} Qxf6 {[%emt 0:00:30]} 15. Nd2 {[%emt 0:00:30]} Qg5 {[%emt 0:00:30]} 16. Nc4 {[%emt 0:00:30]} f6 {[%emt 0:00:30]} 17. Na4 {[%emt 0:00:30]} Bf7 {[%emt 0:00:30]} 18. Ra3 {[%emt 0:00:30]} Kb8 {[%emt 0:00:30]} 19. Nab6 {[%emt 0:00:30]} Be6 {[%emt 0:00:30]} 20. Raa1 {[%emt 0:00:30]} Qxe3 {[%emt 0:00:30]} 21. Nxe3 {[%emt 0:00:30]} h5 {[%emt 0:00:30]} 22. Nbc4 {[%emt 0:00:30]} h4 {[%emt 0:00:30]} 23. b3 {[%emt 0:00:30]} Rh5 {[%emt 0:00:30]} 24. f4 {[%emt 0:00:30]} exf4 {[%emt 0:00:30]} 25. Rxf4 {[%emt 0:00:30]} Rd7 {[%emt 0:00:30]} 26. Nf5 {[%emt 0:00:30]} g5 {[%emt 0:00:30]} 27. Rf2 {[%emt 0:00:30]} Bd8 {[%emt 0:00:30]} 28. Nfe3 {[%emt 0:00:30]} Rh6 {[%emt 0:00:30]} 29. Raf1 {[%emt 0:00:30]} Rdh7 {[%emt 0:00:30]} 30. Rf3 {[%emt 0:00:30]} Rg6 {[%emt 0:00:30]} 31. R1f2 {[%emt 0:00:30]} Kc8 {[%emt 0:00:30]} 32. Kf1 {[%emt 0:00:30]} Kd7 {[%emt 0:00:30]} 33. e5 {[%emt 0:00:30]} Ke8 {[%emt 0:00:30]} 34. Nd6+ {[%emt 0:00:30]} Kf8 {[%emt 0:00:30]} 35. Ne4 {[%emt 0:00:30]} Bxa5 {[%emt 0:00:30]} 36. Nxc5 {[%emt 0:00:30]} Bc8 {[%emt 0:00:30]} 37. Nc4 {[%emt 0:00:30]} Bc7 {[%emt 0:00:30]} 38. Rxf6+ {[%emt 0:00:30]} Rxf6 {[%emt 0:00:30]} 39. Rxf6+ {[%emt 0:00:30]} Rf7 {[%emt 0:00:30]} 40. Rxf7+ {[%emt 0:00:30]} Kxf7 41. Ne4 {[%emt 0:00:30]} Ke6 {[%emt 0:01:00]} 42. Nxg5+ {[%emt 0:00:30]} Kd5 43. Nf3 {[%emt 0:00:30]} b5 {[%emt 0:01:00]} 44. Ne3+ {[%emt 0:00:30]} Kc5 {[%emt 0:00:30]} 45. Ke2 {[%emt 0:00:30]} a5 {[%emt 0:00:30]} 46. c3 {[%emt 0:00:30]} Be6 {[%emt 0:00:30]} 47. d4+ {[%emt 0:00:30]} Kb6 48. c4 {[%emt 0:00:30]} a4 49. bxa4 {[%emt 0:00:30]} bxc4 {[%emt 0:01:30]} 50. Kd2 {[%emt 0:00:30]} Ka6 {[%emt 0:00:30]} 51. Nxh4 {[%emt 0:00:30]} Ba5+ 52. Kc2 {[%emt 0:00:30]} Bb4 {[%emt 0:01:00]} 53. Nhf5 {[%emt 0:00:30]} Ka5 {[%emt 0:00:30]} 54. Nd6 {[%emt 0:00:30]} c3 55. Ne4 {[%emt 0:00:30]} Kxa4 {[%emt 0:01:00]} 56. Nxc3+ {[%emt 0:00:30]} Ka5 57. Kd3 {[%emt 0:00:30]} Bg8 {[%emt 0:01:00]} 58. g4 {[%emt 0:00:30]} Kb6 {[%emt 0:00:30]} 59. Ne4 {[%emt 0:00:30]} Be1 {[%emt 0:00:30]} 60. Nf5 {[%emt 0:00:30]} Kc7 {[%emt 0:00:30]} 61. h4 {[%emt 0:00:30]} Ba2 {[%emt 0:00:30]} 62. h5 {[%emt 0:00:30]} 1-0